[Event "Titled Tuesday Blitz April 26 Late 2022"]
[White "Dubov, Daniil"]
[Black "Pichot, Alan"]
[WhiteFideId "24126055"]
[BlackFideId "110973"]
[WhiteElo "2791"]
[BlackElo "2579"]
[Result "1-0"]
[Round "06"]
[TimeControl "180+1"]
[Date "2022.04.26"]
[WhiteClock "0:00:47"]
[BlackClock "0:01:18"]

1. d4 {[%clk 0:03:00]}  Nf6 {[%clk 0:02:59]} 2. Nf3 {[%clk 0:03:01]}  d5 {[%clk 0:02:59]} 3. c4 {[%clk 0:03:02]}  e6 {[%clk 0:02:59]} 4. g3 {[%clk 0:03:02]}  Be7 {[%clk 0:02:54]} 5. Bg2 {[%clk 0:03:03]}  O-O {[%clk 0:02:55]} 6. O-O {[%clk 0:03:03]}  dxc4 {[%clk 0:02:56]} 7. Qc2 {[%clk 0:03:03]}  a6 {[%clk 0:02:56]} 8. a4 {[%clk 0:03:03]}  Bd7 {[%clk 0:02:53]} 9. Bg5 {[%clk 0:03:02]}  Bc6 {[%clk 0:02:48]} 10. Rd1 {[%clk 0:03:01]}  h6 {[%clk 0:02:43]} 11. Bxf6 {[%clk 0:03:01]}  Bxf6 {[%clk 0:02:44]} 12. Nbd2 {[%clk 0:03:00]}  b5 {[%clk 0:02:39]} 13. e4 {[%clk 0:02:58]}  Nd7 {[%clk 0:02:36]} 14. b3 {[%clk 0:02:56]}  g6 {[%clk 0:02:13]} 15. bxc4 {[%clk 0:02:55]}  b4 {[%clk 0:02:13]} 16. Nb3 {[%clk 0:02:49]}  a5 {[%clk 0:02:09]} 17. e5 {[%clk 0:01:52]}  Bg7 {[%clk 0:02:09]} 18. d5 {[%clk 0:01:52]}  Bb7 {[%clk 0:02:03]} 19. dxe6 {[%clk 0:01:48]}  fxe6 {[%clk 0:02:04]} 20. Nh4 {[%clk 0:01:29]}  Bxg2 {[%clk 0:02:03]} 21. Kxg2 {[%clk 0:01:30]}  g5 {[%clk 0:01:48]} 22. Nc5 {[%clk 0:01:15]}  Nxc5 {[%clk 0:01:34]} 23. Rxd8 {[%clk 0:01:14]}  Raxd8 {[%clk 0:01:35]} 24. Ng6 {[%clk 0:01:11]}  Rf7 {[%clk 0:01:35]} 25. h4 {[%clk 0:01:07]}  Nd3 {[%clk 0:01:19]} 26. Rd1 {[%clk 0:00:48]}  Nf4+ {[%clk 0:01:18]} 27. gxf4 {[%clk 0:00:47]} 1-0


[Site "https://www.chess.com"]

[Event "Titled Tuesday Blitz April 26 Late 2022"]
[White "Dudzinski, Pawel"]
[Black "Skliarov, Viktor"]
[WhiteFideId "1117890"]
[BlackFideId "14106736"]
[WhiteElo "2033"]
[BlackElo "2229"]
[Result "1-0"]
[Round "06"]
[TimeControl "180+1"]
[Date "2022.04.26"]
[WhiteClock "0:00:08"]
[BlackClock "0:00:06"]

1. e4 {[%clk 0:02:56]}  c5 {[%clk 0:03:00]} 2. Nc3 {[%clk 0:02:55]}  Nc6 {[%clk 0:03:00]} 3. g3 {[%clk 0:02:56]}  g6 {[%clk 0:03:01]} 4. Bg2 {[%clk 0:02:57]}  Bg7 {[%clk 0:03:01]} 5. d3 {[%clk 0:02:57]}  d6 {[%clk 0:03:02]} 6. f4 {[%clk 0:02:57]}  e6 {[%clk 0:02:59]} 7. Nf3 {[%clk 0:02:58]}  Nge7 {[%clk 0:02:59]} 8. O-O {[%clk 0:02:58]}  O-O {[%clk 0:02:59]} 9. Be3 {[%clk 0:02:59]}  Nd4 {[%clk 0:03:00]} 10. Qd2 {[%clk 0:02:58]}  Nec6 {[%clk 0:02:58]} 11. Nd1 {[%clk 0:02:56]}  b5 {[%clk 0:02:58]} 12. c3 {[%clk 0:02:47]}  Nxf3+ {[%clk 0:02:58]} 13. Bxf3 {[%clk 0:02:48]}  Bb7 {[%clk 0:02:50]} 14. d4 {[%clk 0:02:47]}  cxd4 {[%clk 0:02:37]} 15. cxd4 {[%clk 0:02:48]}  Na5 {[%clk 0:02:37]} 16. b3 {[%clk 0:02:45]}  Rc8 {[%clk 0:02:23]} 17. Nc3 {[%clk 0:02:35]}  a6 {[%clk 0:02:14]} 18. Rac1 {[%clk 0:02:33]}  Qd7 {[%clk 0:02:03]} 19. d5 {[%clk 0:02:27]}  exd5 {[%clk 0:01:20]} 20. Nxd5 {[%clk 0:02:02]}  Bxd5 {[%clk 0:01:20]} 21. Qxd5 {[%clk 0:02:03]}  Nc6 {[%clk 0:01:11]} 22. Rfd1 {[%clk 0:01:41]}  Nb4 {[%clk 0:01:09]} 23. Qxd6 {[%clk 0:01:38]}  Qxd6 {[%clk 0:01:07]} 24. Rxd6 {[%clk 0:01:36]}  Rxc1+ {[%clk 0:01:05]} 25. Bxc1 {[%clk 0:01:37]}  Nxa2 {[%clk 0:01:05]} 26. Bd2 {[%clk 0:01:35]}  Nc3 {[%clk 0:00:50]} 27. Rxa6 {[%clk 0:01:25]}  Rd8 {[%clk 0:00:50]} 28. Bxc3 {[%clk 0:01:17]}  Bxc3 {[%clk 0:00:50]} 29. e5 {[%clk 0:01:17]}  b4 {[%clk 0:00:47]} 30. Rf6 {[%clk 0:00:39]}  Rd2 {[%clk 0:00:41]} 31. Bc6 {[%clk 0:00:35]}  g5 {[%clk 0:00:12]} 32. Be8 {[%clk 0:00:32]}  gxf4 {[%clk 0:00:13]} 33. gxf4 {[%clk 0:00:20]}  Bd4+ {[%clk 0:00:13]} 34. Kh1 {[%clk 0:00:14]}  Rf2 {[%clk 0:00:13]} 35. Bxf7+ {[%clk 0:00:12]}  Kg7 {[%clk 0:00:14]} 36. Bd5 {[%clk 0:00:12]}  h5 {[%clk 0:00:11]} 37. Rf7+ {[%clk 0:00:11]}  Kg6 {[%clk 0:00:10]} 38. e6 {[%clk 0:00:11]}  h4 {[%clk 0:00:07]} 39. Be4+ {[%clk 0:00:11]}  Kh5 {[%clk 0:00:06]} 40. h3 {[%clk 0:00:09]}  Rf1+ {[%clk 0:00:04]} 41. Kg2 {[%clk 0:00:09]}  Rf2+ {[%clk 0:00:05]} 42. Kh1 {[%clk 0:00:08]}  Rf1+ {[%clk 0:00:05]} 43. Kh2 {[%clk 0:00:09]}  Rf2+ {[%clk 0:00:06]} 44. Bg2 {[%clk 0:00:09]}  Re2 {[%clk 0:00:06]} 45. f5 {[%clk 0:00:09]}  Be5+ {[%clk 0:00:06]} 46. Kg1 {[%clk 0:00:08]}  Bg3 {[%clk 0:00:07]} 47. Bf3+ {[%clk 0:00:07]}  Kg5 {[%clk 0:00:06]} 48. Bxe2 {[%clk 0:00:08]} 1-0


[Site "https://www.chess.com"]

[Event "Titled Tuesday Blitz April 26 Late 2022"]
[White "Ferreira, Vitor Hugo Vieira"]
[Black "Jaferian, Koosha"]
[WhiteFideId "2119765"]
[BlackFideId "12507440"]
[WhiteElo "2165"]
[BlackElo "2030"]
[Result "0-1"]
[Round "06"]
[TimeControl "180+1"]
[Date "2022.04.26"]
[WhiteClock "0:00:54"]
[BlackClock "0:00:27"]

1. d4 {[%clk 0:03:00]}  Nf6 {[%clk 0:03:00]} 2. c4 {[%clk 0:03:00]}  e6 {[%clk 0:03:00]} 3. Nf3 {[%clk 0:03:00]}  b6 {[%clk 0:03:00]} 4. g3 {[%clk 0:03:00]}  Ba6 {[%clk 0:03:01]} 5. Qa4 {[%clk 0:02:58]}  Bb7 {[%clk 0:03:01]} 6. Bg2 {[%clk 0:02:58]}  c5 {[%clk 0:03:02]} 7. d5 {[%clk 0:02:57]}  exd5 {[%clk 0:03:02]} 8. cxd5 {[%clk 0:02:57]}  Nxd5 {[%clk 0:02:56]} 9. O-O {[%clk 0:02:53]}  Be7 {[%clk 0:02:54]} 10. e4 {[%clk 0:02:52]}  Nc7 {[%clk 0:02:53]} 11. e5 {[%clk 0:02:51]}  Nc6 {[%clk 0:02:52]} 12. Nc3 {[%clk 0:02:50]}  O-O {[%clk 0:02:48]} 13. Bf4 {[%clk 0:02:50]}  Ne6 {[%clk 0:02:48]} 14. Be3 {[%clk 0:02:50]}  Qc8 {[%clk 0:02:43]} 15. Rad1 {[%clk 0:02:36]}  Rd8 {[%clk 0:02:39]} 16. Nd5 {[%clk 0:02:35]}  Bf8 {[%clk 0:02:34]} 17. Qg4 {[%clk 0:02:32]}  Kh8 {[%clk 0:02:15]} 18. Qh5 {[%clk 0:02:28]}  Kg8 {[%clk 0:01:45]} 19. Ng5 {[%clk 0:02:28]}  Nxg5 {[%clk 0:01:43]} 20. Bxg5 {[%clk 0:02:29]}  Re8 {[%clk 0:01:42]} 21. Nf6+ {[%clk 0:02:22]}  gxf6 {[%clk 0:01:41]} 22. Bxf6 {[%clk 0:02:22]}  Ne7 {[%clk 0:01:36]} 23. Bxb7 {[%clk 0:01:59]}  Qxb7 {[%clk 0:01:37]} 24. Qg4+ {[%clk 0:01:59]}  Ng6 {[%clk 0:01:36]} 25. Rxd7 {[%clk 0:01:59]}  Qc6 {[%clk 0:01:30]} 26. h4 {[%clk 0:01:56]}  Re6 {[%clk 0:01:16]} 27. Rfd1 {[%clk 0:01:53]}  h5 {[%clk 0:01:09]} 28. Qxh5 {[%clk 0:01:49]}  Bg7 {[%clk 0:01:10]} 29. Rd8+ {[%clk 0:01:46]}  Rxd8 {[%clk 0:01:08]} 30. Rxd8+ {[%clk 0:01:47]}  Re8 {[%clk 0:01:08]} 31. Rxe8+ {[%clk 0:01:38]}  Qxe8 {[%clk 0:01:09]} 32. Bxg7 {[%clk 0:01:36]}  Kxg7 {[%clk 0:01:10]} 33. f4 {[%clk 0:01:36]}  Qa4 {[%clk 0:01:01]} 34. Qg4 {[%clk 0:01:30]}  Qd4+ {[%clk 0:00:59]} 35. Kh1 {[%clk 0:01:28]}  Kf8 {[%clk 0:00:48]} 36. h5 {[%clk 0:01:25]}  Nxe5 {[%clk 0:00:44]} 37. Qc8+ {[%clk 0:01:25]}  Kg7 {[%clk 0:00:44]} 38. fxe5 {[%clk 0:01:26]}  Qxe5 {[%clk 0:00:45]} 39. Qg4+ {[%clk 0:01:24]}  Kh6 {[%clk 0:00:43]} 40. Kg1 {[%clk 0:01:10]}  Qd4+ {[%clk 0:00:41]} 41. Qxd4 {[%clk 0:01:09]}  cxd4 {[%clk 0:00:42]} 42. g4 {[%clk 0:01:09]}  f5 {[%clk 0:00:41]} 43. gxf5 {[%clk 0:01:08]}  Kxh5 {[%clk 0:00:41]} 44. f6 {[%clk 0:00:59]}  Kg6 {[%clk 0:00:42]} 45. f7 {[%clk 0:01:00]}  Kxf7 {[%clk 0:00:42]} 46. Kf2 {[%clk 0:01:00]}  Ke6 {[%clk 0:00:43]} 47. Kf3 {[%clk 0:01:01]}  Kd5 {[%clk 0:00:43]} 48. Kf4 {[%clk 0:01:01]}  Kc4 {[%clk 0:00:36]} 49. Ke4 {[%clk 0:01:01]}  a5 {[%clk 0:00:36]} 50. a4 {[%clk 0:00:55]}  d3 {[%clk 0:00:24]} 51. Ke3 {[%clk 0:00:55]}  Kb3 {[%clk 0:00:24]} 52. Kxd3 {[%clk 0:00:56]}  Kxb2 {[%clk 0:00:24]} 53. Kc4 {[%clk 0:00:56]}  Ka3 {[%clk 0:00:25]} 54. Kb5 {[%clk 0:00:57]}  Kb3 {[%clk 0:00:25]} 55. Kxb6 {[%clk 0:00:56]}  Kxa4 {[%clk 0:00:26]} 56. Kc5 {[%clk 0:00:54]}  Kb3 {[%clk 0:00:26]} 57. Kb5 {[%clk 0:00:54]}  a4 {[%clk 0:00:27]} 0-1


[Site "https://www.chess.com"]

[Event "Titled Tuesday Blitz April 26 Late 2022"]
[White "Fiol, Fabrice"]
[Black "Aung Thant Zin"]
[WhiteFideId "611670"]
[BlackFideId "13000063"]
[WhiteElo "2456"]
[BlackElo "2278"]
[Result "1-0"]
[Round "06"]
[TimeControl "180+1"]
[Date "2022.04.26"]
[WhiteClock "0:01:25"]
[BlackClock "0:01:17"]

1. e4 {[%clk 0:02:59]}  c5 {[%clk 0:02:45]} 2. Nf3 {[%clk 0:02:59]}  Nc6 {[%clk 0:02:44]} 3. Bb5 {[%clk 0:02:59]}  e6 {[%clk 0:02:44]} 4. O-O {[%clk 0:02:59]}  Nge7 {[%clk 0:02:44]} 5. b3 {[%clk 0:03:00]}  a6 {[%clk 0:02:44]} 6. Bxc6 {[%clk 0:03:00]}  Nxc6 {[%clk 0:02:44]} 7. Bb2 {[%clk 0:03:01]}  d6 {[%clk 0:02:45]} 8. d4 {[%clk 0:03:00]}  cxd4 {[%clk 0:02:44]} 9. Nxd4 {[%clk 0:03:01]}  Be7 {[%clk 0:02:43]} 10. Nxc6 {[%clk 0:03:01]}  bxc6 {[%clk 0:02:43]} 11. Bxg7 {[%clk 0:03:01]}  Rg8 {[%clk 0:02:43]} 12. Bb2 {[%clk 0:03:01]}  Bb7 {[%clk 0:02:37]} 13. Nd2 {[%clk 0:03:01]}  c5 {[%clk 0:02:36]} 14. Qh5 {[%clk 0:03:00]}  Bf6 {[%clk 0:02:27]} 15. Bxf6 {[%clk 0:02:44]}  Qxf6 {[%clk 0:02:27]} 16. Rae1 {[%clk 0:02:40]}  O-O-O {[%clk 0:02:26]} 17. Nf3 {[%clk 0:02:25]}  Rg6 {[%clk 0:02:14]} 18. Qh4 {[%clk 0:01:52]}  Qxf3 {[%clk 0:02:04]} 19. g3 {[%clk 0:01:51]}  Rg4 {[%clk 0:01:59]} 20. Qe7 {[%clk 0:01:46]}  Bxe4 {[%clk 0:01:52]} 21. Rxe4 {[%clk 0:01:45]}  Rxe4 {[%clk 0:01:44]} 22. Qa7 {[%clk 0:01:43]}  Rd4 {[%clk 0:01:37]} 23. Qxa6+ {[%clk 0:01:41]}  Qb7 {[%clk 0:01:35]} 24. Qa5 {[%clk 0:01:41]}  h5 {[%clk 0:01:27]} 25. Re1 {[%clk 0:01:39]}  h4 {[%clk 0:01:24]} 26. c3 {[%clk 0:01:32]}  h3 {[%clk 0:01:21]} 27. f3 {[%clk 0:01:25]}  Qxf3 {[%clk 0:01:18]} 28. Qa6+ {[%clk 0:01:25]}  Kd7 {[%clk 0:01:18]} 29. Qb7+ {[%clk 0:01:25]}  Ke8 {[%clk 0:01:17]} 30. Qxf3 {[%clk 0:01:25]} 1-0


[Site "https://www.chess.com"]

[Event "Titled Tuesday Blitz April 26 Late 2022"]
[White "Fiorito, Fabian"]
[Black "Leitao, Rafael"]
[WhiteFideId "100200"]
[BlackFideId "2101246"]
[WhiteElo "2395"]
[BlackElo "2609"]
[Result "0-1"]
[Round "06"]
[TimeControl "180+1"]
[Date "2022.04.26"]
[WhiteClock "0:00:02"]
[BlackClock "0:00:46"]

1. e4 {[%clk 0:03:00]}  c5 {[%clk 0:02:59]} 2. Nf3 {[%clk 0:03:00]}  d6 {[%clk 0:02:59]} 3. d4 {[%clk 0:03:00]}  cxd4 {[%clk 0:03:00]} 4. Nxd4 {[%clk 0:03:00]}  Nf6 {[%clk 0:02:57]} 5. Nc3 {[%clk 0:03:00]}  Nc6 {[%clk 0:02:58]} 6. Be2 {[%clk 0:02:48]}  e5 {[%clk 0:02:55]} 7. Nb3 {[%clk 0:02:41]}  Be7 {[%clk 0:02:55]} 8. Bg5 {[%clk 0:02:40]}  O-O {[%clk 0:02:50]} 9. Bxf6 {[%clk 0:02:39]}  Bxf6 {[%clk 0:02:49]} 10. O-O {[%clk 0:02:38]}  Be6 {[%clk 0:02:46]} 11. Nd5 {[%clk 0:02:32]}  Bg5 {[%clk 0:02:45]} 12. Bg4 {[%clk 0:02:29]}  Qd7 {[%clk 0:02:39]} 13. h3 {[%clk 0:02:24]}  g6 {[%clk 0:02:27]} 14. Bxe6 {[%clk 0:02:00]}  fxe6 {[%clk 0:02:28]} 15. Qg4 {[%clk 0:02:00]}  Bh6 {[%clk 0:02:22]} 16. Rad1 {[%clk 0:01:59]}  Rad8 {[%clk 0:02:19]} 17. Nc3 {[%clk 0:01:56]}  Qe7 {[%clk 0:02:11]} 18. Ne2 {[%clk 0:01:29]}  d5 {[%clk 0:01:48]} 19. exd5 {[%clk 0:01:19]}  exd5 {[%clk 0:01:47]} 20. Nc3 {[%clk 0:00:53]}  Qf7 {[%clk 0:01:45]} 21. Nc5 {[%clk 0:00:38]}  Rfe8 {[%clk 0:01:45]} 22. Qh4 {[%clk 0:00:31]}  Bg7 {[%clk 0:01:37]} 23. Rfe1 {[%clk 0:00:24]}  e4 {[%clk 0:01:36]} 24. Qg5 {[%clk 0:00:13]}  Bd4 {[%clk 0:01:31]} 25. Rxd4 {[%clk 0:00:07]}  Nxd4 {[%clk 0:01:32]} 26. Nb3 {[%clk 0:00:06]}  Nxb3 {[%clk 0:01:24]} 27. axb3 {[%clk 0:00:07]}  Qf5 {[%clk 0:01:13]} 28. Qh6 {[%clk 0:00:05]}  d4 {[%clk 0:01:10]} 29. Ne2 {[%clk 0:00:05]}  d3 {[%clk 0:01:07]} 30. Ng3 {[%clk 0:00:05]}  Qf8 {[%clk 0:00:59]} 31. Qe3 {[%clk 0:00:03]}  dxc2 {[%clk 0:00:58]} 32. Nxe4 {[%clk 0:00:02]}  Qg7 {[%clk 0:00:46]} 0-1


[Site "https://www.chess.com"]

[Event "Titled Tuesday Blitz April 26 Late 2022"]
[White "Golubev, Mikhail"]
[Black "Tanenbaum, Zachary"]
[WhiteFideId "14100983"]
[BlackFideId "2060850"]
[WhiteElo "2374"]
[BlackElo "2168"]
[Result "1-0"]
[Round "06"]
[TimeControl "180+1"]
[Date "2022.04.26"]
[WhiteClock "0:02:20"]
[BlackClock "0:01:27"]

1. e4 {[%clk 0:03:00]}  e5 {[%clk 0:03:00]} 2. Nf3 {[%clk 0:03:00]}  Nc6 {[%clk 0:03:00]} 3. Bb5 {[%clk 0:03:00]}  a6 {[%clk 0:03:01]} 4. Ba4 {[%clk 0:03:00]}  d6 {[%clk 0:03:01]} 5. O-O {[%clk 0:02:57]}  Nf6 {[%clk 0:03:01]} 6. Re1 {[%clk 0:02:55]}  Be7 {[%clk 0:03:01]} 7. c3 {[%clk 0:02:55]}  O-O {[%clk 0:03:01]} 8. d4 {[%clk 0:02:55]}  b5 {[%clk 0:03:01]} 9. Bc2 {[%clk 0:02:53]}  Bg4 {[%clk 0:03:01]} 10. h3 {[%clk 0:02:53]}  Bxf3 {[%clk 0:03:00]} 11. Qxf3 {[%clk 0:02:52]}  exd4 {[%clk 0:03:00]} 12. Rd1 {[%clk 0:02:39]}  Ne5 {[%clk 0:02:55]} 13. Qe2 {[%clk 0:02:33]}  dxc3 {[%clk 0:02:52]} 14. Nxc3 {[%clk 0:02:34]}  c5 {[%clk 0:02:45]} 15. f4 {[%clk 0:02:32]}  Nc6 {[%clk 0:02:42]} 16. e5 {[%clk 0:02:30]}  Nd7 {[%clk 0:02:23]} 17. Qe4 {[%clk 0:02:26]}  g6 {[%clk 0:01:55]} 18. Qxc6 {[%clk 0:02:26]}  Rc8 {[%clk 0:01:52]} 19. Qxa6 {[%clk 0:02:26]}  b4 {[%clk 0:01:27]} 20. Nd5 {[%clk 0:02:22]}  dxe5 {[%clk 0:01:27]} 21. Qxc8 {[%clk 0:02:20]} 1-0


[Site "https://www.chess.com"]

[Event "Titled Tuesday Blitz April 26 Late 2022"]
[White "Jobava, Baadur"]
[Black "Oparin, Grigoriy"]
[WhiteFideId "13601520"]
[BlackFideId "24125890"]
[WhiteElo "2617"]
[BlackElo "2665"]
[Result "1-0"]
[Round "06"]
[TimeControl "180+1"]
[Date "2022.04.26"]
[WhiteClock "0:01:34"]
[BlackClock "0:00:31"]

1. c4 {[%clk 0:03:00]}  e6 {[%clk 0:02:59]} 2. Nc3 {[%clk 0:03:00]}  d5 {[%clk 0:02:59]} 3. d4 {[%clk 0:03:00]}  Be7 {[%clk 0:03:00]} 4. cxd5 {[%clk 0:02:56]}  exd5 {[%clk 0:03:01]} 5. Bf4 {[%clk 0:02:56]}  c6 {[%clk 0:03:01]} 6. e3 {[%clk 0:02:57]}  Bf5 {[%clk 0:03:01]} 7. g4 {[%clk 0:02:57]}  Be6 {[%clk 0:02:57]} 8. Bd3 {[%clk 0:02:57]}  Nd7 {[%clk 0:02:56]} 9. h3 {[%clk 0:02:57]}  h5 {[%clk 0:02:53]} 10. gxh5 {[%clk 0:02:53]}  Ngf6 {[%clk 0:02:54]} 11. h6 {[%clk 0:02:54]}  g6 {[%clk 0:02:54]} 12. Qc2 {[%clk 0:02:46]}  Nh5 {[%clk 0:02:51]} 13. Bh2 {[%clk 0:02:46]}  Rxh6 {[%clk 0:02:50]} 14. O-O-O {[%clk 0:02:47]}  Nb6 {[%clk 0:02:35]} 15. Kb1 {[%clk 0:02:46]}  Bd6 {[%clk 0:02:34]} 16. Be5 {[%clk 0:02:33]}  Bxe5 {[%clk 0:02:29]} 17. dxe5 {[%clk 0:02:34]}  Qc7 {[%clk 0:02:20]} 18. f4 {[%clk 0:02:33]}  Ng3 {[%clk 0:02:19]} 19. Rh2 {[%clk 0:02:33]}  O-O-O {[%clk 0:02:20]} 20. Nf3 {[%clk 0:02:29]}  Nf5 {[%clk 0:02:09]} 21. Qf2 {[%clk 0:02:18]}  Kb8 {[%clk 0:02:01]} 22. Rhh1 {[%clk 0:02:08]}  c5 {[%clk 0:01:54]} 23. Ka1 {[%clk 0:02:06]}  a6 {[%clk 0:01:43]} 24. Bb1 {[%clk 0:02:05]}  Rhh8 {[%clk 0:01:39]} 25. Ng5 {[%clk 0:02:04]}  d4 {[%clk 0:01:32]} 26. Bxf5 {[%clk 0:02:02]}  dxc3 {[%clk 0:01:10]} 27. Bxe6 {[%clk 0:02:01]}  cxb2+ {[%clk 0:01:09]} 28. Qxb2 {[%clk 0:02:00]}  Rxd1+ {[%clk 0:01:02]} 29. Rxd1 {[%clk 0:02:01]}  fxe6 {[%clk 0:01:03]} 30. Nxe6 {[%clk 0:02:00]}  Qc6 {[%clk 0:01:03]} 31. Rd6 {[%clk 0:01:39]}  Qh1+ {[%clk 0:01:03]} 32. Qb1 {[%clk 0:01:40]}  Qxb1+ {[%clk 0:01:03]} 33. Kxb1 {[%clk 0:01:41]}  Nc4 {[%clk 0:01:04]} 34. Rd7 {[%clk 0:01:41]}  b6 {[%clk 0:00:47]} 35. Ng7 {[%clk 0:01:37]}  Kc8 {[%clk 0:00:34]} 36. e6 {[%clk 0:01:37]}  Rxh3 {[%clk 0:00:35]} 37. e7 {[%clk 0:01:33]}  Rxe3 {[%clk 0:00:33]} 38. Rd8+ {[%clk 0:01:34]}  Kc7 {[%clk 0:00:31]} 39. e8=Q {[%clk 0:01:34]} 1-0


[Site "https://www.chess.com"]

[Event "Titled Tuesday Blitz April 26 Late 2022"]
[White "Kanyamarala, Trisha"]
[Black "Piekarski, Atila Balzer"]
[WhiteFideId "45004722"]
[BlackFideId "2119552"]
[WhiteElo "2079"]
[BlackElo "2050"]
[Result "1-0"]
[Round "06"]
[TimeControl "180+1"]
[Date "2022.04.26"]
[WhiteClock "0:01:52"]
[BlackClock "0:01:25"]

1. d4 {[%clk 0:03:00]}  d5 {[%clk 0:02:57]} 2. c4 {[%clk 0:03:00]}  dxc4 {[%clk 0:02:57]} 3. e3 {[%clk 0:02:59]}  c5 {[%clk 0:02:57]} 4. Bxc4 {[%clk 0:02:58]}  cxd4 {[%clk 0:02:57]} 5. exd4 {[%clk 0:02:58]}  Qc7 {[%clk 0:02:56]} 6. Qc2 {[%clk 0:02:46]}  Be6 {[%clk 0:02:10]} 7. Bb5+ {[%clk 0:02:29]}  Nc6 {[%clk 0:02:07]} 8. Nc3 {[%clk 0:02:29]}  Nf6 {[%clk 0:02:06]} 9. Nf3 {[%clk 0:02:25]}  a6 {[%clk 0:02:00]} 10. Bxc6+ {[%clk 0:02:22]}  Qxc6 {[%clk 0:02:01]} 11. O-O {[%clk 0:02:18]}  Rd8 {[%clk 0:01:57]} 12. Ne5 {[%clk 0:02:16]}  Qc7 {[%clk 0:01:57]} 13. Be3 {[%clk 0:02:13]}  Nd5 {[%clk 0:01:54]} 14. Qa4+ {[%clk 0:02:09]}  b5 {[%clk 0:01:44]} 15. Qxa6 {[%clk 0:02:03]}  Nxc3 {[%clk 0:01:42]} 16. bxc3 {[%clk 0:02:01]}  Qxc3 {[%clk 0:01:24]} 17. Qxb5+ {[%clk 0:01:56]}  Bd7 {[%clk 0:01:24]} 18. Nxd7 {[%clk 0:01:56]}  Rxd7 {[%clk 0:01:25]} 19. Rac1 {[%clk 0:01:52]} 1-0


[Site "https://www.chess.com"]

[Event "Titled Tuesday Blitz April 26 Late 2022"]
[White "Kim, Sergey"]
[Black "Leschinsky, Gary"]
[WhiteFideId "13700570"]
[BlackFideId "30951321"]
[WhiteElo "2488"]
[BlackElo "1782"]
[Result "1-0"]
[Round "06"]
[TimeControl "180+1"]
[Date "2022.04.26"]
[WhiteClock "0:00:39"]
[BlackClock "0:00:09"]

1. d4 {[%clk 0:02:51]}  d5 {[%clk 0:02:59]} 2. c4 {[%clk 0:02:50]}  c6 {[%clk 0:02:59]} 3. Nf3 {[%clk 0:02:49]}  Nf6 {[%clk 0:03:00]} 4. Qc2 {[%clk 0:02:50]}  dxc4 {[%clk 0:02:52]} 5. Qxc4 {[%clk 0:02:49]}  Bg4 {[%clk 0:02:51]} 6. Nbd2 {[%clk 0:02:49]}  Nbd7 {[%clk 0:02:49]} 7. e3 {[%clk 0:02:49]}  e6 {[%clk 0:02:45]} 8. Be2 {[%clk 0:02:49]}  Bd6 {[%clk 0:02:44]} 9. O-O {[%clk 0:02:49]}  O-O {[%clk 0:02:45]} 10. b3 {[%clk 0:02:47]}  Qe7 {[%clk 0:02:44]} 11. Bb2 {[%clk 0:02:47]}  Rfe8 {[%clk 0:02:44]} 12. Ne5 {[%clk 0:02:40]}  Bf5 {[%clk 0:02:03]} 13. f4 {[%clk 0:02:33]}  Ne4 {[%clk 0:01:59]} 14. Nxe4 {[%clk 0:02:29]}  Bxe4 {[%clk 0:02:00]} 15. Bf3 {[%clk 0:02:28]}  Bxf3 {[%clk 0:01:51]} 16. Rxf3 {[%clk 0:02:27]}  Bxe5 {[%clk 0:01:51]} 17. fxe5 {[%clk 0:02:26]}  Rac8 {[%clk 0:01:47]} 18. Raf1 {[%clk 0:02:24]}  Rf8 {[%clk 0:01:45]} 19. Qd3 {[%clk 0:01:53]}  c5 {[%clk 0:01:44]} 20. Rh3 {[%clk 0:01:38]}  h6 {[%clk 0:01:26]} 21. Qe4 {[%clk 0:01:37]}  Nb6 {[%clk 0:01:20]} 22. Ba3 {[%clk 0:01:35]}  Nd5 {[%clk 0:01:14]} 23. Bxc5 {[%clk 0:01:27]}  Rxc5 {[%clk 0:01:13]} 24. dxc5 {[%clk 0:01:27]}  Qxc5 {[%clk 0:01:13]} 25. Rhf3 {[%clk 0:01:23]}  b6 {[%clk 0:01:06]} 26. h3 {[%clk 0:01:22]}  Nc3 {[%clk 0:01:05]} 27. Qb7 {[%clk 0:01:13]}  Ne2+ {[%clk 0:00:45]} 28. Kh1 {[%clk 0:01:13]}  Qxe5 {[%clk 0:00:33]} 29. R1f2 {[%clk 0:00:57]}  Qa1+ {[%clk 0:00:19]} 30. Kh2 {[%clk 0:00:58]}  Qe5+ {[%clk 0:00:18]} 31. g3 {[%clk 0:00:58]}  Nc3 {[%clk 0:00:15]} 32. Rxf7 {[%clk 0:00:54]}  Rxf7 {[%clk 0:00:15]} 33. Qxf7+ {[%clk 0:00:52]}  Kh7 {[%clk 0:00:16]} 34. Qf4 {[%clk 0:00:51]}  Qd5 {[%clk 0:00:15]} 35. Qd4 {[%clk 0:00:49]}  Qa5 {[%clk 0:00:13]} 36. b4 {[%clk 0:00:43]}  Qa3 {[%clk 0:00:12]} 37. Qd3+ {[%clk 0:00:41]}  Kg8 {[%clk 0:00:12]} 38. Rc2 {[%clk 0:00:41]}  Nb5 {[%clk 0:00:10]} 39. Qxb5 {[%clk 0:00:40]}  Qxe3 {[%clk 0:00:10]} 40. Qe2 {[%clk 0:00:39]}  Qd4 {[%clk 0:00:09]} 1-0


[Site "https://www.chess.com"]

[Event "Titled Tuesday Blitz April 26 Late 2022"]
[White "Kohler, Aran"]
[Black "Burke, Paul"]
[WhiteFideId "1002856"]
[BlackFideId "2605767"]
[WhiteElo "2288"]
[BlackElo "1871"]
[Result "0-1"]
[Round "06"]
[TimeControl "180+1"]
[Date "2022.04.26"]
[WhiteClock "0:00:07"]
[BlackClock "0:01:25"]

1. e4 {[%clk 0:02:59]}  e5 {[%clk 0:02:59]} 2. Nf3 {[%clk 0:02:59]}  Nc6 {[%clk 0:02:59]} 3. Bb5 {[%clk 0:02:59]}  f5 {[%clk 0:02:58]} 4. d3 {[%clk 0:02:51]}  Nf6 {[%clk 0:02:58]} 5. Nc3 {[%clk 0:02:48]}  Be7 {[%clk 0:02:58]} 6. O-O {[%clk 0:02:39]}  O-O {[%clk 0:02:57]} 7. Bxc6 {[%clk 0:02:35]}  dxc6 {[%clk 0:02:56]} 8. Nxe5 {[%clk 0:02:35]}  Bd6 {[%clk 0:02:39]} 9. Nc4 {[%clk 0:02:33]}  Ng4 {[%clk 0:02:16]} 10. Nxd6 {[%clk 0:02:17]}  Qxd6 {[%clk 0:02:15]} 11. g3 {[%clk 0:02:05]}  f4 {[%clk 0:02:15]} 12. f3 {[%clk 0:01:44]}  fxg3 {[%clk 0:02:14]} 13. fxg4 {[%clk 0:01:42]}  gxh2+ {[%clk 0:02:10]} 14. Kh1 {[%clk 0:01:40]}  Bxg4 {[%clk 0:01:58]} 15. Qe1 {[%clk 0:00:45]}  Rxf1+ {[%clk 0:01:51]} 16. Qxf1 {[%clk 0:00:44]}  Rf8 {[%clk 0:01:50]} 17. Qxf8+ {[%clk 0:00:29]}  Kxf8 {[%clk 0:01:46]} 18. Kg2 {[%clk 0:00:20]}  Bf3+ {[%clk 0:01:38]} 19. Kxf3 {[%clk 0:00:19]}  h1=Q+ {[%clk 0:01:37]} 20. Ke3 {[%clk 0:00:14]}  Qg1+ {[%clk 0:01:32]} 21. Kd2 {[%clk 0:00:08]}  Qf4+ {[%clk 0:01:27]} 22. Ke2 {[%clk 0:00:07]}  Qgf1# {[%clk 0:01:25]} 0-1


[Site "https://www.chess.com"]